bitfinex-derivatives/quotes_ETHF0:USTF0_20250810
["timestamp","ask_amount","ask_price","bid_price","bid_amount"]
[1754823366025,0.47986,4198.2,4198.1,1.1375]
[1754823366222,0.47986,4198.2,4198.1,0.2627]
[1754823366825,0.47639,4197.9,4197.8,0.5335]
[1754823367225,0.47639,4197.9,4197.8,1.5483]
[1754823367920,0.47639,4197.9,4197.8,0.4366]
[1754823368120,0.47639,4197.9,4197.8,0.6919]
[1754823368423,0.47639,4197.9,4197.8,1.5483]
[1754823369928,0.47639,4197.9,4197.8,0.2633]
[1754823370525,0.47639,4197.9,4197.8,1.5483]
[1754823373126,0.47639,4197.9,4197.8,1.1449]
[1754823373930,0.47639,4197.9,4197.8,1.5483]
[1754823374523,0.47644,4197.5,4196.6,3.26248597]
[1754823374731,0.47647,4197.2,4197.1,0.9369]
[1754823374929,0.47647,4197.2,4197.1,1.5483]
[1754823379944,0.47646,4197.3,4197.2,1.5483]
[1754823380137,0.47645,4197.4,4197.3,0.9369]
[1754823380442,0.47644,4197.5,4197.4,1.5483]
[1754823381034,1.25071692,4198.3,4198.2,0.1733]
[1754823381239,0.47634,4198.3,4198.2,0.7068]
[1754823382344,0.47634,4198.3,4198.2,0.8896]
[1754823382646,0.47634,4198.3,4198.2,1.5483]
[1754823383446,1.19078,4198.6,4197.6,0.2633]
[1754823383745,1.61241,4197.7,4197.6,0.96970001]
[1754823383940,0.347,4197.7,4197.6,0.96970001]
[1754823384343,0.7389,4198.0,4197.9,0.3561]
[1754823384534,0.171,4198.0,4197.9,0.6114]
[1754823384740,0.347,4198.0,4197.9,0.6114]
[1754823385141,0.47636,4198.2,4197.9,0.6114]
[1754823385536,0.47636,4198.2,4198.1,0.1733]
[1754823385738,0.64736,4198.2,4198.1,1.5483]
[1754823385940,1.34401982,4198.6,4198.1,2.02466]
[1754823386235,0.82333,4198.4,4198.3,1.5483]
[1754823386635,0.347,4198.4,4198.3,1.5483]
[1754823387438,0.47633,4198.5,4198.4,0.9369]
[1754823387644,0.82333,4198.5,4198.4,1.5483]
[1754823388344,0.47633,4198.5,4198.4,1.5483]
[1754823388539,0.5679,4198.9,4196.2,2.9916485]
[1754823388540,1.52030982,4198.9,4198.6,0.6736]
[1754823388744,1.39119,4198.9,4198.8,1.5483]
[1754823388949,1.09119,4198.9,4198.8,1.5483]
[1754823389144,0.347,4198.9,4198.8,1.5483]
[1754823389848,2.08986982,4199.2,4198.8,1.5483]
[1754823389849,0.77611982,4199.2,4199.1,1.5483]
[1754823390042,0.47624,4199.3,4199.1,0.6114]
[1754823390246,0.82324,4199.3,4199.2,1.5483]
[1754823390644,0.347,4199.3,4199.2,1.5483]
[1754823390844,0.47621,4199.5,4199.4,0.6114]
[1754823391044,0.47621,4199.5,4199.4,1.5483]
[1754823391243,0.77611982,4199.6,4199.5,1.5483]
[1754823391441,0.5679,4199.9,4199.6,0.9369]
[1754823391649,2.43337982,4199.9,4199.8,1.5483]
[1754823391846,2.70297982,4199.9,4199.8,1.5483]
[1754823392446,1.92686,4199.9,4199.8,1.5483]
[1754823392641,1.4507,4199.9,4199.8,1.5483]
[1754823392841,1.1811,4199.9,4199.8,1.5483]
[1754823393046,1.4507,4199.9,4199.8,1.5483]
[1754823393242,0.47621,4199.5,4199.1,0.47625]
[1754823393453,0.171,4199.6,4199.5,1.58641]
[1754823393654,0.347,4199.6,4199.5,2.02451]
[1754823394655,0.9149,4199.6,4199.5,1.5483]
[1754823395150,1.92686,4200.0,4199.9,1.5483]
[1754823395854,0.347,4200.0,4199.9,1.5483]
[1754823396051,0.3421,4200.1,4200.0,0.9373]
[1754823396259,0.6192,4200.1,4200.0,1.5627]
[1754823396458,0.3421,4200.1,4200.0,1.5627]
[1754823396754,0.8823,4200.1,4200.0,1.5627]
[1754823397057,1.442,4199.8,4199.7,1.5627]
[1754823397255,0.3421,4199.8,4199.7,1.5627]
[1754823397558,1.09535,4200.1,4200.0,1.5627]
[1754823397758,1.25658925,4200.1,4200.0,1.5627]
[1754823397957,1.87024964,4200.1,4200.0,1.5627]
[1754823398258,1.81998925,4200.1,4200.0,1.5627]
[1754823398847,2.07938925,4200.1,4200.0,1.5627]
[1754823399353,0.8405,4199.6,4199.5,0.671]
[1754823399551,0.1713,4198.9,4198.8,0.91759]
[1754823399747,1.442,4198.6,4198.5,1.1183]
[1754823400261,1.442,4198.6,4197.4,0.78575]
[1754823400559,0.8786,4198.5,4198.4,0.2632]
[1754823400759,0.63733521,4198.9,4198.8,0.6254]
[1754823401052,1.5491,4198.9,4198.8,0.6254]
[1754823401459,1.5491,4198.9,4198.8,0.8917]
[1754823402457,1.5491,4198.9,4198.8,1.2928]
[1754823404859,1.1417,4198.9,4198.8,1.5273]
[1754823405360,0.16105521,4199.1,4198.9,0.47628]
[1754823405662,24.04892,4199.4,4199.3,1.2928]
[1754823405863,24.20997521,4199.4,4199.3,1.2928]
[1754823406155,0.47627,4199.0,4198.8,0.2663]
[1754823406364,1.5491,4198.9,4198.8,0.8917]
[1754823406554,0.47631,4198.6,4198.3,0.74264]
[1754823406760,0.6192,4198.4,4198.3,1.76914]
[1754823407059,1.5491,4198.4,4198.3,1.76914]
[1754823407658,1.1417,4198.4,4198.3,1.76914]
[1754823407859,1.1417,4198.4,4198.3,2.00364]
[1754823408957,1.1417,4198.4,4198.3,1.5273]
[1754823409163,0.8786,4198.4,4198.3,1.5273]
[1754823411557,1.0340235,4199.3,4198.8,1.2928]
[1754823411762,0.73567,4199.0,4198.9,1.5273]
[1754823411962,1.61797,4199.0,4198.9,1.2928]
[1754823412162,2.02537,4199.0,4198.9,1.2928]
[1754823412665,0.4302,4199.0,4198.9,1.5273]
[1754823413860,0.2594,4199.0,4198.9,1.5273]
[1754823414559,0.8823,4199.3,4199.2,0.6254]
[1754823414755,0.8823,4199.3,4199.2,1.2928]
[1754823414958,0.4762,4199.6,4199.3,0.6674]
[1754823415152,2.0253,4199.6,4199.5,1.2928]
[1754823415863,1.5491,4199.6,4199.5,1.2928]
[1754823416257,1.1417,4199.6,4199.5,1.2928]
[1754823416457,0.2594,4199.6,4199.5,1.5273]
[1754823416965,1.5491,4199.6,4199.5,1.2928]
[1754823417159,0.2594,4199.6,4199.3,0.47623]
[1754823417357,0.6192,4199.4,4199.3,1.10163]
[1754823417665,0.8786,4199.4,4199.3,1.10163]
[1754823417864,1.5491,4199.4,4199.3,1.76903]
[1754823419260,1.5491,4199.4,4199.3,1.2928]
[1754823419867,0.47619,4199.7,4199.6,0.6254]
[1754823420067,1.5491,4199.7,4199.6,1.2928]
[1754823422370,0.2594,4199.7,4199.6,1.2928]
[1754823422572,0.8786,4199.7,4199.6,1.2928]
[1754823422768,1.5491,4199.7,4199.6,1.2928]
[1754823423965,0.4302,4199.7,4199.6,1.5273]
[1754823424866,1.18233721,4200.5,4200.0,1.2928]
[1754823425170,1.63023721,4200.5,4200.4,1.2928]
[1754823425367,1.89483721,4200.5,4200.4,1.2928]
[1754823425567,1.72065858,4200.5,4200.4,1.306]
[1754823426168,0.2646,4200.0,4199.0,0.629]
[1754823426370,0.6029,4199.9,4199.8,0.47617]
[1754823426672,0.6029,4199.9,4199.7,0.86818]
[1754823426872,0.6029,4199.9,4199.8,0.6229]
[1754823427072,0.6029,4199.9,4199.8,0.448]
[1754823427473,1.5316,4199.9,4199.8,0.448]
[1754823427676,1.5316,4199.9,4199.8,0.84]
[1754823427869,1.5316,4199.9,4199.8,1.0149]
[1754823428467,0.6959,4200.2,4200.1,0.448]
[1754823428672,1.5316,4200.2,4200.1,1.2944]
[1754823429174,1.1003,4199.7,4199.6,1.2944]
[1754823429373,1.5316,4199.7,4199.6,1.2944]
[1754823430371,0.8675,4199.7,4199.6,1.5314]
[1754823430575,0.77580336,4200.8,4199.9,0.6229]
[1754823430576,1.267,4200.0,4199.9,0.6229]
[1754823430875,1.5316,4200.0,4199.9,0.6229]
[1754823431074,0.77583075,4200.8,4200.7,0.47607]
[1754823431277,2.55119,4200.9,4200.8,1.2944]
[1754823431574,0.6029,4200.6,4200.5,1.2944]
[1754823431780,0.9287,4200.5,4200.0,0.392]
[1754823432076,0.47606,4200.8,4200.0,1.77055]
[1754823432077,1.5316,4200.1,4200.0,1.77055]
[1754823433073,1.1319,4200.1,4200.0,1.77055]
[1754823433281,1.5316,4200.1,4200.0,0.91265]
[1754823433585,1.5316,4200.1,4200.0,1.77055]
[1754823433971,1.1319,4200.1,4200.0,1.77055]
[1754823435373,0.8675,4200.1,4200.0,1.77055]
[1754823435578,0.6925,4200.8,4200.2,0.47612]
[1754823435778,2.00766,4200.8,4200.7,0.1864]
[1754823435968,2.00766,4200.8,4200.5,0.2795]
[1754823436173,0.3466,4200.5,4200.4,0.3613]
[1754823436374,1.5316,4200.5,4200.4,1.2944]
[1754823439178,1.5316,4200.5,4197.7,2.38206]
[1754823439179,0.6029,4199.9,4199.8,0.6229]
[1754823439486,0.6029,4199.2,4199.1,1.77066]
[1754823439782,1.5316,4199.2,4199.1,1.77066]
[1754823441778,1.1319,4199.2,4199.1,2.00766]
[1754823441983,0.7006,4199.5,4199.4,1.09912]
[1754823442183,0.7006,4199.5,4199.4,2.00762]
[1754823443079,0.8756,4199.5,4199.4,2.00762]
[1754823443382,1.5316,4199.5,4199.4,1.77062]
[1754823444587,1.5316,4199.8,4199.7,1.77059]
[1754823445090,1.1319,4199.8,4199.7,2.00759]
[1754823446086,1.5316,4199.8,4199.7,1.77059]
[1754823446783,0.2646,4199.8,4199.7,2.00529]
[1754823447086,1.267,4200.1,4200.0,1.77055]
[1754823447491,1.5316,4200.1,4200.0,1.77055]
[1754823447789,0.2646,4200.1,4200.0,2.00525]
[1754823448092,1.5316,4200.1,4200.0,1.77055]
[1754823448490,1.5316,4200.1,4200.0,0.2616]
[1754823448790,1.5316,4200.0,4199.8,0.47617]
[1754823448990,1.5316,4199.9,4199.8,0.47617]
[1754823449489,1.5316,4199.9,4199.8,0.73777]
[1754823449691,1.5316,4199.9,4199.8,0.2616]
[1754823449889,0.6029,4199.6,4199.5,0.47621]
[1754823450078,0.6029,4199.6,4199.4,0.47622]
[1754823450391,1.5316,4199.1,4199.0,1.77067]
[1754823450590,1.5316,4199.1,4199.0,0.47627]
[1754823451684,1.5316,4199.1,4199.0,0.73787]
[1754823451887,1.5316,4199.1,4199.0,1.49117]
[1754823452087,1.5316,4199.1,4199.0,1.77067]
[1754823452283,0.2646,4199.1,4199.0,1.77067]
[1754823452490,0.2646,4199.1,4199.0,2.00537]
[1754823453189,0.4362,4199.1,4199.0,2.00537]
[1754823453596,0.8673,4199.5,4199.4,1.30472]
[1754823453794,1.267,4199.5,4199.4,1.2944]
[1754823453990,1.267,4199.5,4199.4,1.0149]
[1754823454294,1.5316,4199.5,4199.4,1.0149]
[1754823455295,1.5316,4199.5,4199.4,1.2944]
[1754823455492,0.8675,4199.5,4199.4,1.5286]
[1754823455987,1.5518,4199.5,4199.4,1.5286]
[1754823456495,1.5518,4199.5,4199.4,1.2944]
[1754823458591,0.6269,4199.1,4199.0,1.0231]
[1754823458790,1.5691,4199.1,4199.0,1.0231]
[1754823459201,1.5691,4199.1,4199.0,1.2798]
[1754823459399,1.1614,4199.1,4199.0,1.514]
[1754823461395,0.6269,4199.4,4199.3,0.66203]
[1754823461699,1.5691,4199.4,4199.3,1.09443]
[1754823461899,1.5691,4199.4,4199.3,1.75603]
[1754823463606,1.5691,4199.4,4199.3,1.2798]
[1754823463806,1.5691,4199.4,4199.3,1.0231]
[1754823464106,1.5691,4199.4,4199.3,1.2798]
[1754823466106,1.5691,4199.4,4199.3,1.514]
[1754823466305,1.5691,4199.4,4199.3,1.2798]
[1754823468007,1.5691,4199.4,4199.1,0.47625]
[1754823468207,0.6269,4199.2,4199.1,1.75605]
[1754823468405,1.5691,4199.2,4199.1,1.75605]
[1754823470512,1.5691,4199.2,4199.1,1.99025]
[1754823470718,0.4403,4199.2,4199.1,1.99025]
[1754823471113,1.5691,4199.4,4199.3,0.65053]
[1754823471313,1.5691,4199.4,4199.3,1.09443]
[1754823471616,0.2579,4199.4,4199.3,1.514]
[1754823471917,0.4403,4199.4,4199.3,1.514]
[1754823472115,0.8848,4199.4,4199.3,1.2798]
[1754823472314,0.8848,4199.4,4199.3,1.514]
[1754823472516,1.5691,4199.4,4199.3,0.8488]
[1754823472715,0.6269,4199.4,4199.2,0.47624]
[1754823472916,1.5691,4199.3,4199.2,1.75604]
[1754823473117,1.5691,4199.3,4199.2,1.49934]
[1754823473319,1.5691,4199.3,4199.2,1.75604]
[1754823473818,0.2579,4199.3,4199.2,1.99024]
[1754823474415,0.4403,4199.3,4199.2,1.99024]
[1754823474715,0.7169,4199.3,4199.2,1.99024]
[1754823475319,1.5691,4199.3,4199.2,1.99024]
[1754823476015,1.5691,4199.3,4199.2,1.75604]
[1754823480727,1.5691,4199.3,4199.2,1.99024]
[1754823481022,1.1614,4199.3,4199.2,1.99024]
[1754823481225,1.5691,4199.3,4199.2,1.99024]
[1754823483129,0.6156,4199.3,4199.2,1.75604]
[1754823483428,0.8922,4199.3,4199.2,1.99024]
[1754823483627,1.5691,4199.3,4199.2,1.99024]
[1754823483823,0.4403,4199.3,4199.2,1.75604]
[1754823484130,1.5691,4199.7,4199.6,1.5702]
[1754823484629,1.5691,4199.7,4199.6,1.756]
[1754823485020,1.1614,4199.7,4199.6,1.756]
[1754823485323,1.1614,4199.7,4199.6,1.9902]
[1754823485324,1.5691,4199.7,4199.6,1.9902]
[1754823485728,1.1614,4199.7,4199.6,1.9902]
[1754823485929,0.4403,4199.7,4199.6,1.9902]
[1754823486229,0.7084,4199.7,4199.6,1.9902]
[1754823486825,0.2579,4199.7,4199.6,1.9902]
[1754823487233,1.142,4200.5,4200.4,0.3522]
[1754823487430,1.544,4200.5,4200.4,1.73661]
[1754823487634,1.544,4200.5,4200.4,0.47611]
[1754823488126,1.544,4200.5,4200.4,1.38441]
[1754823488429,1.544,4200.1,4200.0,1.09115]
[1754823488629,1.544,4200.1,4200.0,1.97125]
[1754823489525,1.1134,4200.5,4200.4,0.47611]
[1754823489729,1.544,4200.5,4200.4,1.73661]
[1754823489932,1.544,4200.5,4200.4,1.47561]
[1754823491239,1.544,4200.5,4200.4,1.73661]
[1754823491429,1.0924,4200.5,4200.2,0.47612]
[1754823491734,1.544,4199.9,4199.8,0.47617]
[1754823492533,0.6163,4199.9,4199.7,0.47618]
[1754823492734,1.544,4199.8,4199.7,0.47618]
[1754823493039,1.544,4199.8,4199.7,0.73898]
[1754823493239,1.544,4199.8,4199.7,1.12348]
[1754823493542,1.544,4199.8,4199.7,1.55398]
[1754823494637,1.544,4199.8,4199.7,0.8168]
[1754823494833,0.9277,4199.7,4199.5,1.1217]
[1754823495038,1.544,4199.6,4199.5,1.554]
[1754823495242,1.544,4199.6,4199.5,1.7367]
[1754823495537,1.544,4199.6,4199.5,1.9713]
[1754823496237,1.544,4199.6,4199.5,1.7367]
[1754823498742,1.544,4199.6,4199.5,1.9713]
[1754823499739,0.182,4200.1,4200.0,0.1827]
[1754823499936,1.544,4200.1,4200.0,1.2605]
[1754823500937,1.544,4200.1,4200.0,1.4951]
[1754823501138,0.2576,4200.1,4200.0,1.4951]
[1754823501643,1.142,4200.1,4200.0,1.4951]
[1754823501937,1.544,4200.1,4200.0,1.2605]
[1754823504647,0.4396,4200.1,4200.0,1.4951]
[1754823504840,0.2576,4200.1,4200.0,1.4951]
[1754823505040,0.8453,4200.4,4200.3,0.615]
[1754823505239,1.0183,4200.4,4200.3,1.2605]
[1754823505434,0.355,4200.5,4200.4,0.3522]
[1754823505638,1.2864,4200.5,4200.4,1.2605]
[1754823505837,1.1029,4200.5,4200.4,1.2605]
[1754823506142,1.544,4200.5,4200.4,1.2605]
[1754823506639,0.8807,4200.5,4200.4,1.4951]
[1754823506847,1.544,4200.5,4200.4,1.4951]
[1754823507240,1.544,4200.5,4200.4,1.2605]
[1754823516250,0.47602,4201.2,4200.4,0.6455]
[1754823516459,1.5419,4201.1,4201.0,1.2826]
[1754823516750,1.2859,4201.1,4200.7,0.4156]
[1754823517054,1.5419,4200.8,4200.7,0.89167]
[1754823517955,1.5419,4200.8,4200.7,1.14717]
[1754823518255,1.5419,4200.8,4200.7,1.40087]
[1754823519148,0.6357,4200.6,4200.5,0.89169]
[1754823519362,1.5419,4200.6,4200.5,0.89169]
[1754823520150,1.5419,4200.6,4199.6,1.1905]
[1754823520359,1.5419,4199.9,4199.8,0.47617]
[1754823520658,1.5419,4199.9,4199.8,1.14547]
[1754823520854,1.5419,4199.9,4199.8,1.58307]
[1754823521062,1.5419,4199.9,4199.8,1.75877]
[1754823525063,1.5419,4199.9,4199.8,1.99327]
[1754823525263,1.5419,4199.9,4199.8,1.75877]
[1754823527664,1.5419,4199.9,4199.8,1.99327]
[1754823527866,1.2859,4200.4,4200.3,1.2826]
[1754823528364,1.5419,4200.4,4200.3,1.2826]
[1754823529069,1.5419,4200.4,4200.0,0.73165]
[1754823529358,0.6357,4200.2,4200.1,0.4156]
[1754823529563,1.5419,4200.2,4200.1,0.4156]
[1754823530162,1.5419,4200.2,4200.1,1.1069]
[1754823531467,1.5419,4200.2,4200.1,1.2826]
[1754823531765,1.5419,4200.2,4200.1,1.5171]
[1754823531960,1.5419,4200.2,4200.1,1.2826]
[1754823532662,0.2589,4200.6,4200.4,0.4761]
[1754823532867,1.5419,4200.6,4200.5,0.6115]
[1754823533070,1.5419,4200.6,4200.5,1.2826]
[1754823534063,0.4445,4200.6,4200.5,1.2826]
[1754823534364,0.4445,4200.6,4200.5,1.5171]
[1754823534565,0.4445,4200.9,4200.8,1.75866]
[1754823534762,0.7005,4200.9,4200.8,1.99316]
[1754823534967,1.5419,4200.9,4200.8,1.99316]
[1754823535262,0.8946,4200.9,4200.8,1.99316]
[1754823535457,1.5419,4200.9,4200.8,1.99316]
[1754823535654,1.5419,4200.9,4200.8,0.47606]
[1754823535857,1.5419,4200.9,4200.8,1.75866]
[1754823536959,0.6169,4200.9,4200.8,1.75866]
[1754823537155,0.2589,4200.9,4200.8,1.99316]
[1754823537569,0.4445,4200.9,4200.8,1.99316]
[1754823538061,0.2589,4201.8,4200.8,0.9056]
[1754823538259,1.0918,4201.6,4201.5,1.2826]
[1754823538465,1.5419,4201.6,4201.5,1.2826]
[1754823539367,1.1506,4201.6,4201.5,1.5171]
[1754823539567,0.47587,4202.5,4201.4,0.2345]
[1754823539762,0.1856,4201.6,4201.5,0.47598]
[1754823539970,1.5419,4201.6,4201.5,0.6115]
[1754823540272,0.6357,4201.4,4201.3,0.476]
[1754823540467,1.5419,4201.4,4201.3,0.476]
[1754823540770,1.5419,4201.4,4201.3,1.7586]
[1754823542370,1.5419,4201.4,4201.3,0.4358]
[1754823542576,1.5419,4201.3,4201.2,0.89161]
[1754823542773,1.5419,4201.3,4201.2,1.14531]
[1754823542973,1.5419,4201.3,4201.2,1.58291]
[1754823543274,1.5419,4201.3,4201.2,1.75861]
[1754823544373,1.5419,4201.3,4201.2,0.91181]
[1754823544573,0.6357,4201.3,4201.1,0.47602]
[1754823544774,1.5419,4201.2,4201.1,0.47602]
[1754823546377,0.7017,4201.1,4200.9,0.88685]
[1754823546672,1.6295,4200.9,4200.8,0.47606]
[1754823546976,1.6295,4200.9,4200.8,0.88686]
[1754823547373,1.6295,4200.9,4200.8,1.50256]
[1754823547572,1.6295,4200.9,4200.8,1.77856]
[1754823550978,1.6295,4200.9,4200.8,2.01296]
[1754823551979,1.2083,4200.9,4200.8,2.01296]
[1754823553278,1.6295,4200.9,4200.8,1.77856]
[1754823553868,1.6295,4200.9,4200.8,1.3025]
[1754823555080,1.6295,4200.2,4200.1,0.6157]
[1754823555281,1.6295,4200.2,4200.1,1.3025]
[1754823555878,0.9795,4200.1,4199.7,0.47618]
[1754823556084,1.6295,4200.0,4199.9,1.3025]
[1754823557283,0.5583,4199.9,4199.6,0.276]
[1754823557483,1.6295,4199.7,4199.6,1.3025]
[1754823558286,1.6295,4199.7,4199.6,1.5369]
[1754823559382,1.6295,4199.7,4199.6,1.3025]
[1754823560680,1.6295,4199.7,4199.6,1.5369]
[1754823560880,1.6295,4199.6,4199.5,0.4762]
[1754823561074,1.6295,4199.6,4199.5,0.887]
[1754823561279,1.6295,4199.6,4199.5,1.1506]
[1754823561480,1.6295,4199.6,4199.5,1.7787]
[1754823562282,1.6295,4199.6,4199.5,0.7398]
[1754823562681,1.6295,4199.6,4199.5,1.1506]
[1754823563484,1.6295,4199.6,4199.5,0.4762]
[1754823563687,1.6295,4199.6,4199.4,0.47622]
[1754823563883,1.6295,4199.5,4199.4,1.77872]
[1754823564987,1.6295,4199.5,4199.4,23.92772]
[1754823565789,1.6295,4199.5,4199.4,24.16212]
[1754823565988,1.6295,4199.9,4199.8,1.77867]
[1754823566184,1.2083,4199.9,4199.8,1.3025]
[1754823566390,1.2083,4199.9,4199.8,1.5369]
[1754823566582,1.6295,4199.9,4199.8,1.5369]
[1754823567791,1.2083,4199.9,4199.8,1.5369]
[1754823568486,1.82781,4200.4,4200.3,0.2636]
[1754823568691,1.82781,4200.4,4200.3,1.3025]
[1754823568893,1.3517,4200.4,4200.3,1.3025]
[1754823569088,2.10561,4200.4,4200.3,1.3025]
[1754823569283,1.6295,4200.4,4200.3,0.4387]
[1754823569484,1.6295,4200.4,4200.3,0.2636]
[1754823570789,1.6295,4200.4,4200.3,0.6744]
[1754823572090,0.2778,4200.4,4200.3,1.0265]
[1754823572295,0.2778,4200.4,4200.3,1.3025]
[1754823572493,1.6295,4200.4,4200.3,1.3025]
[1754823574197,1.2083,4200.7,4200.6,1.0265]
[1754823574395,1.2083,4200.7,4200.6,1.3025]
[1754823574794,1.6295,4200.7,4200.6,1.3025]
[1754823575195,0.47602,4201.2,4200.6,1.09178]
[1754823575395,1.5796,4200.7,4200.6,1.77338]
[1754823575793,1.5796,4200.7,4200.5,0.47609]
[1754823575997,1.5836,4200.6,4200.5,0.47609]
[1754823577294,1.5836,4200.6,4200.5,1.77939]
[1754823581002,1.18989,4201.8,4199.6,1.3623]
[1754823581003,1.5836,4199.7,4199.6,1.3623]
[1754823581203,1.5836,4199.7,4199.6,23.4933]
[1754823581404,1.5836,4199.7,4199.6,23.9105]
[1754823583505,1.5836,4199.7,4199.6,23.2289]
[1754823583695,1.5836,4199.7,4199.6,23.6461]
[1754823584202,1.5836,4199.7,4199.6,0.4762]
[1754823585006,1.5836,4199.7,4199.4,22.127]
[1754823585210,1.5836,4199.7,4199.6,1.3033]
[1754823586205,1.5836,4199.7,4199.6,1.5372]
[1754823586502,1.5836,4199.7,4199.6,1.3033]
[1754823589011,1.5836,4199.7,4199.6,1.77948]
[1754823592015,0.2568,4200.1,4199.6,1.77948]
[1754823592207,1.5836,4200.1,4200.0,1.3033]
[1754823593007,1.5836,4200.1,4200.0,0.8681]
[1754823593209,1.5836,4200.1,4199.7,0.2644]
[1754823593413,0.6379,4199.9,4199.8,1.3033]
[1754823593714,1.5836,4199.9,4199.8,1.3033]
[1754823596316,1.5836,4199.9,4199.8,1.0389]
[1754823596510,0.6379,4199.6,4199.5,0.8681]
[1754823596705,1.5836,4199.6,4199.5,1.3033]
[1754823597417,0.8947,4199.6,4199.5,1.5377]
[1754823597817,0.4432,4199.6,4199.5,1.5377]
[1754823598018,0.2568,4199.6,4199.5,1.5377]
[1754823599120,0.4432,4199.6,4199.5,1.5377]
[1754823599922,0.7156,4199.6,4199.5,1.5377]
[1754823600318,0.4432,4199.6,4199.5,1.5377]
[1754823600523,0.2568,4199.6,4199.5,1.5377]
[1754823600824,1.1321,4199.9,4199.8,0.6217]
[1754823601021,1.3165,4199.9,4199.8,23.6487]
[1754823601216,1.5836,4199.9,4199.8,23.4143]
[1754823601617,1.1671,4199.9,4199.8,23.4143]
[1754823601822,1.5836,4199.9,4199.8,23.6487]
[1754823602226,1.5836,4199.9,4199.8,23.4143]
[1754823602531,1.5836,4199.9,4199.8,23.89048]
[1754823602532,1.1268,4199.9,4199.8,23.89048]
[1754823602827,1.3992,4199.9,4199.8,24.12488]
[1754823603024,1.5836,4199.9,4199.8,23.6487]
[1754823603429,1.5836,4199.9,4199.8,23.4143]
[1754823603622,0.2568,4199.9,4199.8,23.4143]
[1754823603821,0.2568,4199.9,4199.8,23.6487]
[1754823604025,0.7156,4199.9,4199.8,23.6487]
[1754823604223,0.2568,4200.1,4199.9,0.2344]
[1754823604425,0.6432,4200.2,4200.1,1.5377]
[1754823604627,1.3268,4200.2,4200.1,23.6437]
[1754823604827,1.5836,4200.2,4200.1,23.6437]
[1754823605025,1.5836,4200.2,4200.1,23.4093]
[1754823605426,1.5836,4200.2,4200.1,23.1449]
[1754823605830,1.5836,4200.2,4200.1,23.4235]
[1754823607628,1.5836,4200.2,4200.1,23.6579]
[1754823608233,0.8947,4200.2,4200.1,23.6579]
[1754823608631,0.2568,4200.2,4200.1,23.6579]
[1754823609234,0.4438,4200.2,4200.1,23.6579]
[1754823609430,1.5637,4200.2,4200.1,22.5569]
[1754823609733,0.3983,4200.9,4200.2,0.6772]
[1754823609933,1.5671,4200.8,4200.7,1.3004]
[1754823610434,1.5671,4200.8,4200.7,23.3984]
[1754823610622,0.3983,4201.4,4200.7,23.3984]
[1754823610829,1.1245,4200.9,4200.8,1.5348]
[1754823611134,1.5671,4200.9,4200.8,1.3004]
[1754823612630,1.5671,4200.9,4200.8,1.5348]
[1754823612831,0.7262,4200.9,4200.8,1.5348]
[1754823613430,0.9835,4200.9,4200.8,1.5348]
[1754823614036,0.4472,4200.9,4200.8,1.5348]
[1754823614232,1.1688,4200.9,4200.8,1.5348]
[1754823614433,1.5671,4200.9,4200.8,1.3004]
[1754823614633,1.5671,4200.9,4200.7,22.098]
[1754823614936,1.5671,4200.8,4200.7,23.3984]
[1754823615730,1.5671,4200.8,4200.7,22.4966]
[1754823615938,1.5671,4200.3,4200.2,1.3004]
[1754823616129,1.5671,4200.3,4200.2,23.3894]
[1754823616434,1.5671,4200.3,4200.2,26.47884023]
[1754823617134,1.5671,4200.3,4200.2,25.17844023]
[1754823617328,1.5671,4200.3,4200.2,26.47884023]
[1754823617526,1.5671,4200.3,4200.2,25.62144023]
[1754823617834,1.5671,4200.3,4200.2,22.089]
[1754823618038,1.5671,4200.3,4200.2,22.9306]
[1754823618329,1.5671,4200.3,4200.2,23.2092]
[1754823618534,1.3818,4200.3,4200.2,23.3894]
[1754823618734,1.5671,4200.3,4200.2,23.3894]
[1754823619334,1.5671,4200.3,4200.2,23.6238]
[1754823619632,1.5671,4200.3,4200.2,23.3894]
[1754823619940,1.5671,4200.3,4200.2,22.089]
[1754823621629,1.5671,4200.0,4199.9,0.3986]
[1754823622630,1.5671,4200.0,4199.9,1.0218]
[1754823622830,1.5671,4200.0,4199.9,1.3004]
[1754823624534,1.5671,4200.0,4199.1,0.3986]
[1754823624738,0.9158,4199.9,4199.2,22.3124]
[1754823625034,0.6296,4199.4,4199.3,1.5348]
[1754823625237,1.2881,4199.4,4199.3,1.5348]
[1754823625637,1.1688,4199.4,4199.3,1.3004]
[1754823625932,1.5671,4199.4,4199.3,0.2723]
[1754823626333,1.5671,4199.4,4199.3,1.3004]
[1754823627238,1.5671,4200.0,4199.9,1.1202]
[1754823627530,1.5671,4200.0,4199.9,1.3004]
[1754823627925,0.9158,4201.4,4200.0,0.6772]
[1754823628136,0.187,4200.2,4200.1,0.9018]
[1754823628329,0.4472,4200.2,4200.1,1.5348]
[1754823628534,0.8898,4200.6,4200.5,1.3004]
[1754823628836,1.5671,4200.6,4200.5,1.3004]
[1754823632134,1.5671,4200.6,4200.5,1.5349]
[1754823632331,1.1688,4201.2,4201.1,0.6232]
[1754823632534,1.1688,4201.2,4201.1,1.3004]
[1754823632535,1.5671,4201.2,4201.1,1.3004]